Cogmind - Beta 13 @@@ ROGUE MODE // 2024.04.13 @ 04:04:48 Player: Naiya55 Result: Destroyed by 8R-AWN with 8R-AWN's Boregun Performance ------------- Evolutions (1) 500 Regions Visited (4) 800 Robots Destroyed (50) 250 Value Destroyed (1051) 1051 Prototype IDs (1) 20 Alien Tech Used (0) 0 Bonus (300) 300 TOTAL SCORE: 2921 Bonus ------- Aligned with FarCom 300 Cogmind --------- Core Integrity 0/400 Matter 174/300 Energy 105/265 System Corruption 13% Temperature Cool (0) Movement Treading (240) Ox1 Location -9/Exiles Parts ------- > --- POWER (1) -------- Improved Ion Engine > --- PROPULSION (3) --- Light Treads Light Treads (fused) > --- UTILITY (3) ------ Cooling System High-capacity Storage Unit > --- WEAPON (2) ------- High-powered Shotgun > --- INVENTORY (20) --- Faulty Cooled Ion Engine Light Fission Core Light Treads Light Treads Improved Treads Large Storage Unit ECM Suite ECM Suite Improved Light Armor Plating Improved Light Armor Plating Improved Light Armor Plating Improved Light Armor Plating Light Assault Rifle Light Assault Rifle Light Assault Rifle High-powered Shotgun Datajack Katana Katana Peak State ------------ > --- POWER ------------ Improved Ion Engine > --- PROPULSION ------- Light Treads Light Treads > --- UTILITY ---------- Cooling System High-capacity Storage Unit Cloak of Protection > --- WEAPON ----------- High-powered Shotgun High-powered Shotgun > --- INVENTORY -------- Cooled Ion Engine Light Fission Core Light Treads Light Treads Improved Treads Large Storage Unit ECM Suite ECM Suite Improved Light Armor Plating Improved Light Armor Plating Improved Light Armor Plating Improved Light Armor Plating Light Assault Rifle Light Assault Rifle Light Assault Rifle High-powered Shotgun Datajack Katana Katana [Rating: 25] Favorites ----------- Power Light Ion Engine Engine Light Ion Engine Propulsion Light Treads Treads Light Treads Utility High-capacity Storage Unit Device Cooling System Storage High-capacity Storage Unit Processor Improved Targeting Computer Protection Light Armor Plating Weapon High-powered Shotgun Ballistic Gun High-powered Shotgun Launcher Rocket Launcher Slashing Weapon Katana Build | -11 -10 -9 -9 -9 ------- Run | Yrd Mat Mat Min Exi Slots Evolved 2 | . . 2 . . Power . | . . . . . Propulsion 1 | . . 1 . . Utility 1 | . . 1 . . Weapon . | . . . . . Parts Attached 39 | 6 1 23 7 2 Power 5 | 1 . 2 2 . Engine 5 | 1 . 2 2 . Core . | . . . . . Reactor . | . . . . . Propulsion 12 | 2 . 7 3 . Treads 12 | 2 . 7 3 . Leg . | . . . . . Wheel . | . . . . . Hover . | . . . . . Flight . | . . . . . Utility 11 | 1 1 8 . 1 Device 2 | . . 1 . 1 Storage 5 | 1 . 4 . . Processor 2 | . 1 1 . . Hackware . | . . . . . Protection 2 | . . 2 . . Artifact . | . . . . . Weapon 11 | 2 . 6 2 1 Energy Gun . | . . . . . Energy Cannon . | . . . . . Ballistic Gun 9 | 2 . 5 1 1 Ballistic Cannon . | . . . . . Launcher 1 | . . . 1 . Special Weapon . | . . . . . Impact Weapon . | . . . . . Slashing Weapon 1 | . . 1 . . Piercing Weapon . | . . . . . Special Melee Weapon . | . . . . . Unidentified Prototypes 1 | . . . . 1 Parts Lost 13 | . . 5 4 4 Power 3 | . . 2 1 . Propulsion 4 | . . 1 2 1 Utility 3 | . . 1 1 1 Weapon 3 | . . 1 . 2 Highest Loss Streak 4 | . . 3 4 4 To Critical Strikes 4 | . . . . 4 Average Slot Usage (%) 95 | . 97 96 91 86 Engine 11 | . 14 10 10 11 Treads 31 | . 28 32 33 31 Device 5 | . . 3 11 12 Storage 12 | . 14 12 11 11 Processor 8 | . 11 11 3 . Protection 3 | . . 4 . . Ballistic Gun 20 | . 28 21 15 11 Launcher 1 | . . . 6 9 Naked Turns . | . . . . . Heaviest Build 64 | 12 12 54 56 64 Greatest Support 63 | 40 40 63 63 60 Greatest Overweight (x) 2 | . . 1 2 1 Average Overweight (x) . | . . . . . Largest Inventory Capacity 20 | 8 8 20 20 20 Average Capacity 17 | 7 8 18 20 20 Most Carried 20 | 2 7 20 20 20 Average Carried 14 | 1 4 14 18 19 Final Capacity 20 | 8 8 20 20 20 Final Carried 19 | 2 7 19 19 19 Class Distribution -------------------- 70% | Mutant 29% | Scavenger-Mutant Dominant Class ---------------- Mutant | -10/Materials Mutant | -9/Materials Mutant | -9/Mines Mutant | -9/Exiles Resources | -11 -10 -9 -9 -9 ----------- Run | Yrd Mat Mat Min Exi Matter Collected 1769 | 201 375 973 220 . Remotely . | . . . . . Salvage Created 1667 | . 475 894 260 38 Parts 112 | . 32 64 9 7 Haulers Intercepted 3 | . . 3 . . Recyclers Shooed 4 | . 3 1 . . Parts Field Recycled . | . . . . . Retrieved Matter . | . . . . . Parts Self-Destructed . | . . . . . Prevented . | . . . . . Kills | -11 -10 -9 -9 -9 ------- Run | Yrd Mat Mat Min Exi Combat Hostiles Destroyed 42 | . 6 21 9 6 Guns 33 | . 6 21 5 1 AOE 9 | . . . 4 5 Classes Destroyed 11 | . 6 3 2 . Worker 3 | . 2 1 . . Builder 2 | . 1 1 . . Tunneler 1 | . . 1 . . Hauler 3 | . . 3 . . Recycler 3 | . 2 . 1 . Watcher 5 | . 3 2 . . Swarmer 11 | . 2 9 . . Grunt 13 | . 4 5 4 . Brawler 1 | . . . 1 . Sentry 7 | . . 7 . . Assembled 10 | . . . 4 6 Best Kill Streak 7 | . 4 4 5 7 Combat Bots Only 6 | . 3 4 4 6 Max Kills in Single Turn 2 | . 1 2 2 1 Gunslinging 1 | . . 1 1 . Exploded 2 | . . . 2 1 Melee . | . . . . . Uniques/NPCs Destroyed 1 | . . . . 1 EX-BIN (-9/Exiles) Combat | -11 -10 -9 -9 -9 -------- Run | Yrd Mat Mat Min Exi Hostile Shots Fired 259 | . 39 143 25 52 Missed 68 | . 10 37 5 16 Damage Taken 2885 | . 296 1086 819 684 Core 449 | . 44 168 161 76 Absorbed by Shields . | . . . . . Regen/Repaired (Parts) 98 | . . 98 . . Core Remaining (%) 91 | 100 82 . . . Volleys Fired 146 | . 39 82 13 12 Largest 2 | . 2 2 2 2 Hottest 50 | . 40 50 50 50 Shots Fired 280 | . 78 164 23 15 Gun 269 | . 78 164 18 9 Cannon . | . . . . . Launcher 11 | . . . 5 6 Special . | . . . . . Kinetic 269 | . 78 164 18 9 Thermal . | . . . . . Explosive 11 | . . . 5 6 Electromagnetic . | . . . . . Robot Hit Streak 16 | . 16 12 16 4 Robot Miss Streak 6 | . 3 6 5 5 Penetration Max . | . . . . . Secondary Targets 7 | . 1 4 2 . Max Gunslinging Chain 1 | . 1 1 1 . Shots Hit Robots 192 | . 54 112 18 8 Core Hits 97 | . 21 44 17 15 Critical Kills . | . . . . . Critical Parts Destroyed 2 | . . 2 . . Critical Strikes 2 | . . 2 . . Destroy 2 | . . 2 . . Melee Attacks 1 | . . 1 . . Impact . | . . . . . Slashing 1 | . . 1 . . Piercing . | . . . . . Sneak Attacks . | . . . . . Combat Hostiles . | . . . . . Follow-up Attacks . | . . . . . Damage Inflicted 3494 | . 719 1771 593 411 Guns 2873 | . 719 1758 308 88 Cannons . | . . . . . Explosions 608 | . . . 285 323 Melee . | . . . . . Ramming 13 | . . 13 . . Kinetic 2873 | . 719 1758 308 88 Thermal . | . . . . . Explosive 608 | . . . 285 323 Electromagnetic . | . . . . . Impact . | . . . . . Slashing . | . . . . . Piercing . | . . . . . Highest Corruption 13 | . . 3 13 13 Average Corruption 6 | . . 2 9 13 Corruption Purged . | . . . . . Corruption Blocked . | . . . . . Effects 58 | . . 17 26 15 Message Errors 17 | . . 3 9 5 Matter Fused 10 | . . 4 4 2 Heat Flow Errors 6 | . . 2 2 2 Energy Discharges 6 | . . 2 4 . Parts Fused 1 | . . . 1 . Data Loss (minor) 12 | . . 5 3 4 Misfires 4 | . . 1 1 2 Alerts 2 | . . . 2 . Overload Shots . | . . . . . Overflow Damage 37 | . . . 28 9 Projectiles . | . . . . . Explosions 37 | . . . 28 9 Melee . | . . . . . Knockbacks 1 | . . 1 . . Impact 1 | . . 1 . . Kinetic . | . . . . . Secondary . | . . . . . Self-Inflicted Damage 151 | . . . 100 51 Shots 5 | . . . 3 2 Rammed 3 | . . 3 . . Targets Rammed 3 | . . 3 . . Kicked . | . . . . . Crushed . | . . . . . Highest Temperature 243 | . . 243 179 116 Average Temperature 64 | . . 59 78 67 Received Heat Transfer 480 | . 138 228 114 . Siege Activations . | . . . . . Robots Corrupted . | . . . . . Combat Hostiles . | . . . . . Parts Fried . | . . . . . Impact Corruptions . | . . . . . Robots Melted . | . . . . . Combat Hostiles . | . . . . . Parts Melted . | . . . . . Heat Transferred . | . . . . . Parts Sabotaged . | . . . . . Parts Stolen . | . . . . . Parts Stripped . | . . . . . Power Chain Reactions . | . . . . . Alert | -11 -10 -9 -9 -9 ------- Run | Yrd Mat Mat Min Exi Peak Influence 246 | . 246 212 166 . Initial 62 | . . 38 62 . Average 94 | . 127 96 75 . Maximum Alert Level 1 | . 1 1 . . Low Security (%) 92 | 100 71 93 100 . Level 1 7 | . 28 6 . . Level 2 . | . . . . . Level 3 . | . . . . . Level 4 . | . . . . . Level 5 . | . . . . . High Security . | . . . . . Max Security . | . . . . . Squads Dispatched 6 | . 2 4 . . Investigation 5 | . 2 3 . . Extermination . | . . . . . Reinforcement 1 | . . 1 . . Assault . | . . . . . Garrison . | . . . . . Intercept . | . . . . . Searches Triggered . | . . . . . Construction Impeded . | . . . . . Haulers Reinforced . | . . . . . Active Scanning Responses . | . . . . . Cargo Convoy Interrupts . | . . . . . Stealth | -11 -10 -9 -9 -9 --------- Run | Yrd Mat Mat Min Exi Distress Signals 6 | . 1 5 . . Communications Jammed . | . . . . . Distress Signals . | . . . . . Times Spotted 60 | . 14 27 11 8 Peak Tracking Total 9 | . 4 4 3 9 Tactical Retreats 2 | . 1 1 . . Traps | -11 -10 -9 -9 -9 ------- Run | Yrd Mat Mat Min Exi Traps Triggered 6 | . 1 5 . . Indirectly . | . . . . . Trap Hack Attempts . | . . . . . Triggered . | . . . . . Disarmed . | . . . . . Reprogrammed . | . . . . . Reused . | . . . . . Traps Extracted . | . . . . . Installed . | . . . . . Triggered . | . . . . . Machines | -11 -10 -9 -9 -9 ---------- Run | Yrd Mat Mat Min Exi Machines Disabled 3 | . . . 1 2 Max in Single Turn 2 | . . . 1 2 Machines Repaired . | . . . . . Machines Dismantled . | . . . . . Machines Sabotaged . | . . . . . Overloaded Fab Kills . | . . . . . Hacking | -11 -10 -9 -9 -9 --------- Run | Yrd Mat Mat Min Exi Machines Accessed 11 | . 3 8 . . Terminals 8 | . 2 6 . . Fabricators . | . . . . . Repair Stations 1 | . . 1 . . Recycling Units 1 | . 1 . . . Scanalyzers 1 | . . 1 . . Garrison Access . | . . . . . Total Hacks 28 | . 7 21 . . Successful 11 | . 2 9 . . Failed 17 | . 5 12 . . Catastrophic 4 | . 2 2 . . Database Lockouts . | . . . . . Manual 18 | . 6 11 . 1 Terminals 23 | . 5 18 . . Fabricators . | . . . . . Repair Stations 2 | . . 2 . . Recycling Units 2 | . 2 . . . Scanalyzers 1 | . . 1 . . Garrison Access . | . . . . . Terminal Hacks 8 | . 1 7 . . Record 1 | . 1 . . . Branch Access Points 1 | . . 1 . . Alert Level 1 | . . 1 . . Locate Traps 1 | . . 1 . . Maintenance Status 1 | . . 1 . . Transport Status 1 | . . 1 . . Hauler Manifests 1 | . . 1 . . Registered Components 1 | . . 1 . . Fabricator Hacks . | . . . . . Repair Station Hacks 2 | . . 2 . . Scan Component 1 | . . 1 . . Repair 1 | . . 1 . . Recycling Unit Hacks . | . . . . . Scanalyzer . | . . . . . Garrison Access Hacks . | . . . . . Unauthorized Hacks 1 | . 1 . . . Terminals . | . . . . . Fabricators . | . . . . . Repair Stations . | . . . . . Recycling Units 1 | . 1 . . . Tunnel 1 | . 1 . . . Scanalyzers . | . . . . . Garrison Access . | . . . . . Data Cores Recovered . | . . . . . Used . | . . . . . Hacking Detections 8 | . 2 6 . . Full Trace Events 1 | . . 1 . . Feedback Events . | . . . . . Feedback Blocked . | . . . . . Robot Schematics Acquired . | . . . . . Robots Built . | . . . . . Authchips . | . . . . . Time . | . . . . . Total Robot Build Rating . | . . . . . Part Schematics Acquired . | . . . . . Parts Built . | . . . . . Authchips . | . . . . . Time . | . . . . . Total Part Build Rating . | . . . . . Parts Repaired 1 | . . 1 . . Time 26 | . . 26 . . Parts Recycled . | . . . . . Recycled Matter . | . . . . . Retrieved Matter . | . . . . . Retrieved Components . | . . . . . Parts Scanalyzed . | . . . . . Part Schematics Acquired . | . . . . . Parts Damaged . | . . . . . Bothacking | -11 -10 -9 -9 -9 ------------ Run | Yrd Mat Mat Min Exi Used RIF Installer . | . . . . . Robots Hacked . | . . . . . Non-combat . | . . . . . Combat . | . . . . . Robot Hacks Applied . | . . . . . Relay Couplers Released . | . . . . . Fabnet Peak Effective % . | . . . . . Robots Rewired . | . . . . . Allies Hacked . | . . . . . Hacks Repelled . | . . . . . Allies | -11 -10 -9 -9 -9 -------- Run | Yrd Mat Mat Min Exi Total Allies . | . . . . . Largest Group . | . . . . . Highest-Rated Group . | . . . . . Highest-Rated Ally . | . . . . . Total Orders . | . . . . . Ally Attacks . | . . . . . Total Damage . | . . . . . Kills . | . . . . . Allies Corrupted . | . . . . . Allies Melted . | . . . . . Intel | -11 -10 -9 -9 -9 ------- Run | Yrd Mat Mat Min Exi Robot Analysis Total . | . . . . . Derelict Logs Recovered . | . . . . . Drone Launches . | . . . . . Drone Recoveries . | . . . . . Exploration | -11 -10 -9 -9 -9 ------------- Run | Yrd Mat Mat Min Exi Turns Passed 4346 | 74 447 2747 755 323 Spaces Moved 2315 | 43 196 1464 440 172 Core 4 | 4 . . . . Treads 2311 | 39 196 1464 440 172 Legs . | . . . . . Wheels . | . . . . . Hover . | . . . . . Flight . | . . . . . Fastest Speed 50 | 50 160 160 160 160 Average Speed 161 | 149 160 161 160 168 Slowest Speed 320 | 160 160 240 320 240 Overloaded Moves . | . . . . . Propulsion Burnouts . | . . . . . Robots Hopped . | . . . . . Cave-ins Triggered 1 | . . . 1 . Exploration Rate (%) 46 | 4 28 93 66 43 Regions Visited 4 Branch Regions 2 Pre-discovered Areas 1 | . 1 . . . Known Exits Taken 1 | . . 1 . . Unknown Exits Taken 3 | 1 1 . 1 . Scrap Searched 1 | . . . 1 . Spaces Dug 1 | . . 1 . . Terrain Destroyed 69 | . . 1 32 36 Melee 1 | . . 1 . . Projectile . | . . . . . AOE 68 | . . . 32 36 Terrain Rammed . | . . . . . Walls Destroyed . | . . . . . Machines Disabled . | . . . . . Actions | -11 -10 -9 -9 -9 --------- Run | Yrd Mat Mat Min Exi Total 2643 | 50 251 1686 464 192 Wait 78 | . 11 64 2 1 Move 2311 | 42 195 1463 439 172 Hop . | . . . . . Pick Up 40 | 2 5 30 2 1 Fast Attach 13 | 6 1 5 . 1 Attach 9 | . . 5 3 1 Detach . | . . . . . Swap 17 | . . 13 4 . Drop 21 | . . 20 1 . Fire 146 | . 39 82 13 12 Melee 1 | . . 1 . . Ram . | . . . . . Kick . | . . . . . Crush 3 | . . 3 . . Escape Stasis . | . . . . . Rewire 4 | . . . . 4 Trap . | . . . . . Miscellaneous . | . . . . . Route ------- -11/Scrapyard -10/Materials -9/Materials (discovered 6 exits: [*Mat x3] / *Min / *Sto x2) -9/Mines (discovered 2 exits: [*Mat] / *Exi) -9/Exiles (discovered 1 exit: [*Min]) History --------- Turn | Location | Event 3 | -11/Scrapyard | Discovered new exit (range 15) 75 | -11/Scrapyard | Entered Materials 309 | -10/Materials | Build established: Mutant 461 | -10/Materials | Discovered new exit (range 10) 522 | -10/Materials | Entered another Materials area 522 | -9/Materials | Evolved 2 slots: Propulsion x1, Utility x1 738 | -9/Materials | Identified exit to Mines 738 | -9/Materials | Identified exit to Storage 931 | -9/Materials | Build established: Scavenger-Mutant 1446 | -9/Materials | Lost 3 parts (1p1n1u) 1826 | -9/Materials | Discovered new exit (range 16) 2245 | -9/Materials | Discovered new exit (range 11) 2285 | -9/Materials | Build established: Mutant 2668 | -9/Materials | Repaired Lgt. Treads 3045 | -9/Materials | Discovered new exit (range 4) 3269 | -9/Materials | Entered Mines 3316 | -9/Mines | Received a Rocket Launcher from a helpful Derelict 3319 | -9/Mines | Met a Derelict bent on vengeance 3402 | -9/Mines | Assembled infested the area 3514 | -9/Mines | Core integrity fell below 50% 3521 | -9/Mines | Crushed by falling debris 3521 | -9/Mines | System corruption reached 10% 3552 | -9/Mines | Lost 4 parts (1p2n1u) 3734 | -9/Mines | Discovered new exit (range 13) 3898 | -9/Mines | Core integrity fell below 20% 3988 | -9/Mines | Found a hidden stash of uninstalled traps 4016 | -9/Mines | Deemed a non-threat by the Exiles lab entrance 4017 | -9/Mines | Discovered new exit (range 5) 4024 | -9/Mines | Entered Exiles 4070 | -9/Exiles | Discovered new exit (range 14) 4107 | -9/Exiles | Met 8R-AWN 4134 | -9/Exiles | Met EX-HEX 4205 | -9/Exiles | Met EX-BIN 4228 | -9/Exiles | Aligned with FarCom system 4229 | -9/Exiles | Given EX-Vault access code 4235 | -9/Exiles | Attacked by the Exiles 4254 | -9/Exiles | Destroyed EX-BIN 4293 | -9/Exiles | Opened EX-Vault 4303 | -9/Exiles | Found Prototype Device 4303 | -9/Exiles | Identified Cloak of Protection 4347 | -9/Exiles | Destroyed by 8R-AWN with 8R-AWN's Boregun Last Messages --------------- 04313_ Penetrated by HV Slug. 04320_ HV Slug penetrates Wall. 04322_ Penetrated by HV Slug. 04327_ G06%JIS%FEIOM4>NSCF /58TUY 04327_ Penetrated by HV Slug. 04329_ HV Slug penetrates Wall. 04329_ Penetrated by HV Slug. 04331_ HV Slug penetrates Wall. 04333_ Penetrated by HV Slug. 04336_ Critical hit (Destroy). 04336_ Cloak of Protection destroyed. 04336_ Penetrated by HV Slug. 04340_ HV Slug penetrates Wall. 04342_ Penetrated by HV Slug. 04342_ Critical hit (Destroy). 04342_ Hpw. Shotgun destroyed. 04345_ Penetrated by HV Slug. 04345_ HV Slug penetrates Wall. 04346_ U324H#F XZDMQ9D04/4EUMPP04KUP6 04347_ Penetrated by HV Slug. Map ----- +----------------------------------------------------+ | | | | | | | | | | | | | | | | | ?????????????????????#########???????????????????? | | ?????????????????????# #???????????????????? | | ?????????????????????#] [#???????????????????? | | ?????????????????????# #???????????????????? | | ?????????????????????# X#???????????????????? | | ?????????????????????## ##???????????????????? | | ?????????????????????# ;#???????????????????? | | ?????????????????????## ;#???????????????????? | | ??????????????????????# ##???????????????????? | | ??????????????????????# ;#?#####?????????????? | | ??????????????????????# ##""""""?????????????? | | ??????????????????????# ;# """?????????????? | | ?????????????????????## X""?????????????? | | ?????????????????????# ;# """?????????????? | | ????????????????###### ##""""""?????????????? | | ????????????????""""" #??#####?????????????? | | ???????????????"""" # #????????????????????? | | ??????????????#""X" @ ##???????????????????? | | ??????????????#" #???????????????????? | | ??????????????#" # #??????????????????? | | ??????????????#""""""## g # #########??????????? | | ??????????????##"###?## * """""""#??????????? | | ?????????????????????# #"""""""#??????????? | | ????????????????????# #"""""""#??????????? | | ????????????????????# # #"" """"#??????????? | | ????????????????????# """"#??????????? | | ????????????????????# """#??????????? | | ????????????????????# """#??????????? | | ????????????????????# """#??????????? | | ????????????????????# """#??????????? | | ????????????????????# """#??????????? | | ????????????????????# % """"??????????? | | ?????????????????????? """#??????????? | | ??????????????????????#" "X" """"??????????? | | ??????????????????????#" """ #??????????? | | ??????????????????????#" """""""""#??????????? | | ?????????????????????##" ###########??????????? | | ????????????????????##"" #????????????????????? | | ??????????????????###"" #????????????????????? | | ????????????????""""""" ##???????????????????? | | ???????????????""" " "" ##???###########????? | | ???????????????""" " #####"""""""""##???? | +----------------------------------------------------+ Best States ------------- Heat Dissipation 50 Energy Generation 12 Energy Capacity 265 Matter Stores 500 Matter Capacity 500 Sight Range 16 Terrain Scan Density 10 Cloak Strength 5 Armor Coverage 150 Evasion (%) 40 Targeting Accuracy 6 Recoil Reduction 3 Item Schematics ----------------- None Robot Schematics ------------------ None Fabricated ------------ Nothing Alien Tech Used ----------------- None Achievements -------------- I Survived The Infestation Maybe Next Time I'll Detach My Launcher Shopping List Challenges ------------ None Game ------ Seed TitaniumUltimateComputer Manual? 0 Play Time 00:40:31 Cumulative 3.9 hours Start 2024.04.12 @ 23:32:33 End 2024.04.13 @ 04:04:48 Sessions 1 Manual Loads 0 Difficulty Rogue Special Mode None Game No. 9 Rogue 9 Adventurer 0 Explorer 0 Win Type - Total 0 Types 0/0/0/0/0/0/0/0/0 Lore% 15 Gallery% 6 Achievement% 10 Wizard Run 0 Options --------- Layout 1 ASCII 0 Keyboard 0 Movement Vi Keybinds 0 Fullscreen 2 Font 24/Smallcaps Map View 50x35 Zoom Use 0% Tactical HUD 1 Map Filters NONE Filters NONE Steam 1 RUN: ae65ac21-f683-4e97-b4fb-d972cccbdfe3